[Event "*** SCC Grand Prix: Titled Tuesday Blitz"]
[Site "Chess.com"]
[Date "2020.08.25"]
[Round "7"]
[White "ShadowJolteon"]
[Black "Morshynska"]
[Result "1-0"]
[WhiteElo "2434"]
[BlackElo "2180"]
[TimeControl "180+1"]
[EndTime "11:20:27 PDT"]
[Termination "ShadowJolteon won by checkmate"]

1. d4 {[%clk 0:03:00.7]} 1... d5 {[%clk 0:02:59.7]} 2. c4 {[%clk 0:03:00.6]}
2... c6 {[%clk 0:02:59.6]} 3. Nf3 {[%clk 0:03:00.9]} 3... Nf6 {[%clk 0:02:59.1]}
4. Nc3 {[%clk 0:03:01.2]} 4... dxc4 {[%clk 0:02:56]} 5. a4 {[%clk 0:03:01.3]}
5... Bf5 {[%clk 0:02:54.8]} 6. e3 {[%clk 0:02:57.8]} 6... e6 {[%clk 0:02:54.1]}
7. Bxc4 {[%clk 0:02:48.6]} 7... Bb4 {[%clk 0:02:53.5]} 8. O-O {[%clk 0:02:46.6]}
8... O-O {[%clk 0:02:36.8]} 9. Qb3 {[%clk 0:02:45.8]} 9... a5 {[%clk 0:02:20.7]}
10. Na2 {[%clk 0:02:45.1]} 10... Nd5 {[%clk 0:02:06.9]} 11. Nxb4 {[%clk
0:02:31.5]} 11... Nxb4 {[%clk 0:01:58.9]} 12. Bd2 {[%clk 0:02:31]} 12... Qb6
{[%clk 0:01:46.5]} 13. Ne5 {[%clk 0:02:24]} 13... c5 {[%clk 0:01:07.2]} 14. dxc5
{[%clk 0:02:03.1]} 14... Qxc5 {[%clk 0:01:08.1]} 15. Bc3 {[%clk 0:02:01.3]}
15... N8c6 {[%clk 0:00:52.6]} 16. Nxc6 {[%clk 0:01:55.9]} 16... bxc6 {[%clk
0:00:50]} 17. Rac1 {[%clk 0:01:55.2]} 17... Rab8 {[%clk 0:00:42.4]} 18. Bd4
{[%clk 0:01:51.9]} 18... Qe7 {[%clk 0:00:36.4]} 19. Be5 {[%clk 0:01:46.5]} 19...
Rb7 {[%clk 0:00:35.3]} 20. Qc3 {[%clk 0:01:38.5]} 20... f6 {[%clk 0:00:33]} 21.
Bg3 {[%clk 0:01:37.8]} 21... Kh8 {[%clk 0:00:32.5]} 22. Rfd1 {[%clk 0:01:36.5]}
22... e5 {[%clk 0:00:32.1]} 23. f3 {[%clk 0:01:25.8]} 23... h5 {[%clk
0:00:31.6]} 24. e4 {[%clk 0:01:24.6]} 24... Bc8 {[%clk 0:00:29.2]} 25. Bf2
{[%clk 0:01:21.8]} 25... g5 {[%clk 0:00:28.2]} 26. Bb3 {[%clk 0:01:11.6]} 26...
Qg7 {[%clk 0:00:20.3]} 27. Bc5 {[%clk 0:01:09.3]} 27... Re8 {[%clk 0:00:20.5]}
28. Rd6 {[%clk 0:01:01]} 28... g4 {[%clk 0:00:19.6]} 29. f4 {[%clk 0:00:52.6]}
29... h4 {[%clk 0:00:13.8]} 30. fxe5 {[%clk 0:00:47.2]} 30... fxe5 {[%clk
0:00:14.7]} 31. Rf1 {[%clk 0:00:44.1]} 31... g3 {[%clk 0:00:12.8]} 32. Rff6
{[%clk 0:00:34.2]} 32... gxh2+ {[%clk 0:00:10.9]} 33. Kxh2 {[%clk 0:00:33.1]}
33... Qg4 {[%clk 0:00:09.6]} 34. Rh6+ {[%clk 0:00:20.7]} 34... Rh7 {[%clk
0:00:09.9]} 35. Rxh7+ {[%clk 0:00:08]} 35... Kxh7 {[%clk 0:00:10.8]} 36. Qc4
{[%clk 0:00:07.2]} 36... Qf4+ {[%clk 0:00:10.5]} 37. Kg1 {[%clk 0:00:06.8]}
37... Rf8 {[%clk 0:00:07]} 38. Rd3 {[%clk 0:00:01.7]} 38... Qf1+ {[%clk
0:00:05.8]} 39. Kh2 {[%clk 0:00:02]} 39... Qf4+ {[%clk 0:00:05.9]} 40. Kg1
{[%clk 0:00:02.2]} 40... Qf1+ {[%clk 0:00:05.7]} 41. Kh2 {[%clk 0:00:02.5]}
41... Qf4+ {[%clk 0:00:05.6]} 42. Kh1 {[%clk 0:00:02.9]} 42... Bg4 {[%clk
0:00:05.6]} 43. Bxf8 {[%clk 0:00:02]} 43... Qf1+ {[%clk 0:00:04.6]} 44. Kh2
{[%clk 0:00:02.4]} 44... Qf4+ {[%clk 0:00:05.1]} 45. Kg1 {[%clk 0:00:02.8]}
45... Qg3 {[%clk 0:00:04.7]} 46. Qg8# {[%clk 0:00:02.4]} 1-0

[Event "*** SCC Grand Prix: Titled Tuesday Blitz"]
[Site "Chess.com"]
[Date "2020.08.25"]
[Round "7"]
[White "Cambek64"]
[Black "tylityli"]
[Result "0-1"]
[WhiteElo "2331"]
[BlackElo "2211"]
[TimeControl "180+1"]
[EndTime "11:20:28 PDT"]
[Termination "tylityli won by checkmate"]

1. e4 {[%clk 0:03:00.9]} 1... e5 {[%clk 0:02:59.1]} 2. Nf3 {[%clk 0:03:00]} 2...
Nc6 {[%clk 0:02:59.1]} 3. Bb5 {[%clk 0:03:00.1]} 3... a6 {[%clk 0:02:58.7]} 4.
Bxc6 {[%clk 0:02:59.2]} 4... dxc6 {[%clk 0:02:58.3]} 5. O-O {[%clk 0:02:59.3]}
5... Ne7 {[%clk 0:02:58.5]} 6. d3 {[%clk 0:02:55.4]} 6... Ng6 {[%clk 0:02:57.3]}
7. Nc3 {[%clk 0:02:53.8]} 7... Bd6 {[%clk 0:02:54.7]} 8. Be3 {[%clk 0:02:51.8]}
8... c5 {[%clk 0:02:54.5]} 9. Ne2 {[%clk 0:02:46.9]} 9... O-O {[%clk 0:02:53.1]}
10. Nd2 {[%clk 0:02:45.7]} 10... f5 {[%clk 0:02:51.4]} 11. exf5 {[%clk
0:02:43.9]} 11... Bxf5 {[%clk 0:02:51]} 12. Ne4 {[%clk 0:02:43.6]} 12... Qe7
{[%clk 0:02:43.7]} 13. f3 {[%clk 0:02:31.7]} 13... b5 {[%clk 0:02:20.3]} 14. Qe1
{[%clk 0:02:27.4]} 14... b4 {[%clk 0:02:03]} 15. Qf2 {[%clk 0:02:22.5]} 15...
Bxe4 {[%clk 0:01:57.6]} 16. dxe4 {[%clk 0:02:22.1]} 16... c4 {[%clk 0:01:56.2]}
17. Rfd1 {[%clk 0:02:19.8]} 17... a5 {[%clk 0:01:49.7]} 18. Rd5 {[%clk 0:02:18]}
18... a4 {[%clk 0:01:49.4]} 19. Rad1 {[%clk 0:02:08.8]} 19... Ra6 {[%clk
0:01:37.7]} 20. Ng3 {[%clk 0:02:02]} 20... Nh4 {[%clk 0:01:28.7]} 21. Qe2 {[%clk
0:02:02.3]} 21... Rc6 {[%clk 0:01:24.9]} 22. Ra5 {[%clk 0:01:57.2]} 22... a3
{[%clk 0:01:23.2]} 23. bxa3 {[%clk 0:01:52.9]} 23... bxa3 {[%clk 0:01:23.1]} 24.
Rb1 {[%clk 0:01:51.1]} 24... Qe6 {[%clk 0:01:16.7]} 25. Rab5 {[%clk 0:01:38.4]}
25... h6 {[%clk 0:01:08.3]} 26. h3 {[%clk 0:01:34]} 26... Qg6 {[%clk 0:01:00.5]}
27. Kh2 {[%clk 0:01:31.8]} 27... Qf6 {[%clk 0:00:53.6]} 28. Rd5 {[%clk
0:01:27.9]} 28... Qe6 {[%clk 0:00:52.9]} 29. Rbb5 {[%clk 0:01:27.4]} 29... c3
{[%clk 0:00:47]} 30. Rb3 {[%clk 0:01:21]} 30... Kh7 {[%clk 0:00:40.9]} 31. Rdb5
{[%clk 0:01:11.3]} 31... Be7 {[%clk 0:00:38.1]} 32. Qd3 {[%clk 0:01:07.8]} 32...
Nxf3+ {[%clk 0:00:21.2]} 33. gxf3 {[%clk 0:01:06.6]} 33... Rxf3 {[%clk
0:00:22.1]} 34. Kg2 {[%clk 0:01:06.4]} 34... Qf7 {[%clk 0:00:20]} 35. Rxe5
{[%clk 0:00:58.4]} 35... Bd6 {[%clk 0:00:16.7]} 36. Nf5 {[%clk 0:00:36.8]} 36...
Rxe3 {[%clk 0:00:07.6]} 37. Qxe3 {[%clk 0:00:28.8]} 37... Bxe5 {[%clk
0:00:07.6]} 38. Rxa3 {[%clk 0:00:26.3]} 38... Rg6+ {[%clk 0:00:05.8]} 39. Kf1
{[%clk 0:00:21]} 39... Qc4+ {[%clk 0:00:05.7]} 40. Qd3 {[%clk 0:00:21.1]} 40...
Qxd3+ {[%clk 0:00:04.9]} 41. cxd3 {[%clk 0:00:20.3]} 41... c2 {[%clk 0:00:05.2]}
42. d4 {[%clk 0:00:19.4]} 42... c1=Q+ {[%clk 0:00:05.2]} 43. Ke2 {[%clk
0:00:19.9]} 43... Qxa3 {[%clk 0:00:05.6]} 44. dxe5 {[%clk 0:00:18.1]} 44...
Qxa2+ {[%clk 0:00:06.5]} 45. Ke3 {[%clk 0:00:16.8]} 45... Rg2 {[%clk 0:00:06.8]}
46. e6 {[%clk 0:00:15.6]} 46... Qd2+ {[%clk 0:00:05.8]} 47. Kf3 {[%clk
0:00:13.8]} 47... Qf2# {[%clk 0:00:05.8]} 0-1

[Event "*** SCC Grand Prix: Titled Tuesday Blitz"]
[Site "Chess.com"]
[Date "2020.08.25"]
[Round "7"]
[White "Rodalquilar"]
[Black "colegiodemadrid"]
[Result "1-0"]
[WhiteElo "2630"]
[BlackElo "2429"]
[TimeControl "180+1"]
[EndTime "11:20:31 PDT"]
[Termination "Rodalquilar won by resignation"]

1. d4 {[%clk 0:03:00.9]} 1... d5 {[%clk 0:02:58.3]} 2. Bg5 {[%clk 0:03:00.2]}
2... f6 {[%clk 0:02:57.2]} 3. Bd2 {[%clk 0:02:59.7]} 3... c6 {[%clk 0:02:55.6]}
4. Nf3 {[%clk 0:02:50.4]} 4... Nd7 {[%clk 0:02:44.7]} 5. c4 {[%clk 0:02:46.8]}
5... e5 {[%clk 0:02:41.7]} 6. cxd5 {[%clk 0:02:36.3]} 6... cxd5 {[%clk
0:02:42.6]} 7. dxe5 {[%clk 0:02:25.9]} 7... fxe5 {[%clk 0:02:43.5]} 8. e4 {[%clk
0:02:18.2]} 8... dxe4 {[%clk 0:02:43.8]} 9. Ng5 {[%clk 0:02:18.6]} 9... Nc5
{[%clk 0:02:26.3]} 10. Nxe4 {[%clk 0:01:31.8]} 10... Nxe4 {[%clk 0:02:19.4]} 11.
Qa4+ {[%clk 0:01:32]} 11... Bd7 {[%clk 0:02:18.4]} 12. Qxe4 {[%clk 0:01:32.2]}
12... Bd6 {[%clk 0:02:09.5]} 13. Bc4 {[%clk 0:01:08.4]} 13... Nf6 {[%clk
0:02:08.9]} 14. Qh4 {[%clk 0:01:07.5]} 14... b5 {[%clk 0:02:01.5]} 15. Bb3
{[%clk 0:01:06.5]} 15... a5 {[%clk 0:02:01]} 16. a4 {[%clk 0:01:03.6]} 16... b4
{[%clk 0:01:38.8]} 17. O-O {[%clk 0:01:03.5]} 17... Qe7 {[%clk 0:01:32.2]} 18.
Bg5 {[%clk 0:01:01.8]} 18... Rc8 {[%clk 0:01:29.1]} 19. Nd2 {[%clk 0:01:01.2]}
19... Bf5 {[%clk 0:01:22.4]} 20. Rfe1 {[%clk 0:00:57.8]} 20... Be6 {[%clk
0:01:14.1]} 21. Ne4 {[%clk 0:00:32.7]} 21... O-O {[%clk 0:00:59.3]} 22. Qg3
{[%clk 0:00:14.3]} 22... Kh8 {[%clk 0:00:25.8]} 23. Rad1 {[%clk 0:00:13.9]}
23... Bb8 {[%clk 0:00:22.6]} 24. Bh4 {[%clk 0:00:05.4]} 24... Nxe4 {[%clk
0:00:14.7]} 25. Bxe7 {[%clk 0:00:01.8]} 25... Nxg3 {[%clk 0:00:13.5]} 26. Bxe6
{[%clk 0:00:02.7]} 26... Ba7 {[%clk 0:00:05.5]} 27. Bxf8 {[%clk 0:00:02.9]}
27... Rxf8 {[%clk 0:00:06]} 28. hxg3 {[%clk 0:00:02.8]} 28... Bxf2+ {[%clk
0:00:05.9]} 29. Kh2 {[%clk 0:00:03.7]} 29... Bxe1 {[%clk 0:00:06.1]} 30. Rxe1
{[%clk 0:00:04.6]} 30... Rf2 {[%clk 0:00:05.4]} 31. Rxe5 {[%clk 0:00:04.6]}
31... Rxb2 {[%clk 0:00:04.8]} 32. Rxa5 {[%clk 0:00:04.9]} 32... g6 {[%clk
0:00:05.1]} 33. Ra8+ {[%clk 0:00:05.1]} 33... Kg7 {[%clk 0:00:04.7]} 34. Rb8
{[%clk 0:00:05.8]} 34... Kf6 {[%clk 0:00:04.6]} 35. Bd5 {[%clk 0:00:05.9]} 35...
h5 {[%clk 0:00:05.1]} 36. a5 {[%clk 0:00:05]} 36... Ke5 {[%clk 0:00:05.7]} 37.
Bc4 {[%clk 0:00:05]} 37... Kd4 {[%clk 0:00:05.3]} 38. a6 {[%clk 0:00:04.4]}
38... Kxc4 {[%clk 0:00:02.1]} 39. a7 {[%clk 0:00:04.7]} 39... Ra2 {[%clk
0:00:03]} 40. a8=Q {[%clk 0:00:05.5]} 40... Rxa8 {[%clk 0:00:03.3]} 41. Rxa8
{[%clk 0:00:06.4]} 41... b3 {[%clk 0:00:04]} 42. Rc8+ {[%clk 0:00:07.3]} 42...
Kd3 {[%clk 0:00:04]} 43. Rd8+ {[%clk 0:00:06.7]} 43... Kc2 {[%clk 0:00:03.9]}
44. Rc8+ {[%clk 0:00:07.4]} 44... Kd3 {[%clk 0:00:04]} 45. Rb8 {[%clk
0:00:08.3]} 45... Kc2 {[%clk 0:00:03.8]} 46. Kh3 {[%clk 0:00:09]} 46... g5
{[%clk 0:00:04]} 47. g4 {[%clk 0:00:09.6]} 47... h4 {[%clk 0:00:03.6]} 48. g3
{[%clk 0:00:10.3]} 48... hxg3 {[%clk 0:00:04]} 49. Kxg3 {[%clk 0:00:10.9]} 49...
b2 {[%clk 0:00:04.9]} 50. Kf3 {[%clk 0:00:11.5]} 50... b1=Q {[%clk 0:00:05.5]}
51. Rxb1 {[%clk 0:00:11.7]} 51... Kxb1 {[%clk 0:00:06.4]} 52. Ke4 {[%clk
0:00:12.6]} 52... Kc2 {[%clk 0:00:07.3]} 53. Kf5 {[%clk 0:00:13.4]} 53... Kd3
{[%clk 0:00:08.2]} 54. Kxg5 {[%clk 0:00:14]} 54... Ke4 {[%clk 0:00:09]} 55. Kf6
{[%clk 0:00:14.6]} 1-0

[Event "*** SCC Grand Prix: Titled Tuesday Blitz"]
[Site "Chess.com"]
[Date "2020.08.25"]
[Round "7"]
[White "VinzentSpitzl"]
[Black "stolencandy13"]
[Result "0-1"]
[WhiteElo "2373"]
[BlackElo "2511"]
[TimeControl "180+1"]
[EndTime "11:20:34 PDT"]
[Termination "stolencandy13 won by resignation"]

1. e4 {[%clk 0:03:00.9]} 1... c6 {[%clk 0:02:58]} 2. Nf3 {[%clk 0:03:00.4]} 2...
d5 {[%clk 0:02:58.9]} 3. Nc3 {[%clk 0:03:00.8]} 3... Bg4 {[%clk 0:02:58.7]} 4.
h3 {[%clk 0:03:00.4]} 4... Bxf3 {[%clk 0:02:58.7]} 5. Qxf3 {[%clk 0:03:01.3]}
5... Nf6 {[%clk 0:02:59]} 6. g3 {[%clk 0:03:00]} 6... e6 {[%clk 0:02:56.6]} 7.
Bg2 {[%clk 0:02:57.6]} 7... dxe4 {[%clk 0:02:53.8]} 8. Nxe4 {[%clk 0:02:57.3]}
8... Nxe4 {[%clk 0:02:54.4]} 9. Qxe4 {[%clk 0:02:58.2]} 9... Qd5 {[%clk
0:02:54.5]} 10. O-O {[%clk 0:02:55.7]} 10... Qxe4 {[%clk 0:02:52.7]} 11. Bxe4
{[%clk 0:02:56.6]} 11... Nd7 {[%clk 0:02:53]} 12. d4 {[%clk 0:02:55.8]} 12...
O-O-O {[%clk 0:02:47]} 13. c3 {[%clk 0:02:54.4]} 13... Bd6 {[%clk 0:02:45.6]}
14. Be3 {[%clk 0:02:44.6]} 14... Kb8 {[%clk 0:02:43.6]} 15. a4 {[%clk
0:02:44.1]} 15... Rhe8 {[%clk 0:02:40.5]} 16. a5 {[%clk 0:02:31.5]} 16... a6
{[%clk 0:02:40.2]} 17. b4 {[%clk 0:02:27.9]} 17... e5 {[%clk 0:02:37.2]} 18. d5
{[%clk 0:02:27.9]} 18... Nf6 {[%clk 0:02:31.7]} 19. Bg2 {[%clk 0:02:15.2]} 19...
Nxd5 {[%clk 0:02:31.6]} 20. Bb6 {[%clk 0:02:01.9]} 20... Nxb6 {[%clk 0:02:26.6]}
21. axb6 {[%clk 0:02:02.8]} 21... e4 {[%clk 0:02:22.7]} 22. Rfe1 {[%clk
0:01:55.4]} 22... f5 {[%clk 0:02:22.2]} 23. Bf1 {[%clk 0:01:50.5]} 23... Be5
{[%clk 0:02:19.8]} 24. Ra3 {[%clk 0:01:46.4]} 24... Rd2 {[%clk 0:01:51.3]} 25.
c4 {[%clk 0:01:39.6]} 25... Bd4 {[%clk 0:01:43]} 26. Re2 {[%clk 0:01:37.4]}
26... Rxe2 {[%clk 0:01:41.2]} 27. Bxe2 {[%clk 0:01:38.3]} 27... Bxb6 {[%clk
0:01:41.1]} 28. c5 {[%clk 0:01:33.5]} 28... Bc7 {[%clk 0:01:40.9]} 29. Bc4
{[%clk 0:01:32.6]} 29... Rd8 {[%clk 0:01:33.5]} 30. Kf1 {[%clk 0:01:25.1]} 30...
g6 {[%clk 0:01:29.5]} 31. Ke2 {[%clk 0:01:23.8]} 31... Rd4 {[%clk 0:01:29.2]}
32. Rc3 {[%clk 0:01:23.8]} 32... Be5 {[%clk 0:01:27]} 33. Rc2 {[%clk 0:01:23.9]}
33... Kc7 {[%clk 0:01:25.4]} 34. Bg8 {[%clk 0:01:20.6]} 34... Rd7 {[%clk
0:01:20.4]} 35. Rd2 {[%clk 0:01:15.2]} 35... Rg7 {[%clk 0:01:19.3]} 36. Be6
{[%clk 0:01:13.8]} 36... Bc3 {[%clk 0:01:16]} 37. Rc2 {[%clk 0:01:05.3]} 37...
Bxb4 {[%clk 0:01:15.1]} 38. Ke3 {[%clk 0:01:05.4]} 38... Re7 {[%clk 0:01:11.8]}
39. Bg8 {[%clk 0:01:03.9]} 39... h6 {[%clk 0:00:55.4]} 40. Kf4 {[%clk 0:01:01]}
40... a5 {[%clk 0:00:41.7]} 41. h4 {[%clk 0:01:01.2]} 41... a4 {[%clk
0:00:40.1]} 42. h5 {[%clk 0:01:01.3]} 42... gxh5 {[%clk 0:00:32.3]} 43. Kxf5
{[%clk 0:01:01.7]} 43... e3 {[%clk 0:00:30.8]} 44. fxe3 {[%clk 0:00:58.5]} 44...
Rxe3 {[%clk 0:00:31.7]} 45. Kf4 {[%clk 0:00:55.2]} 45... Re1 {[%clk 0:00:29.9]}
46. Kf3 {[%clk 0:00:47.7]} 46... a3 {[%clk 0:00:28.5]} 47. Ba2 {[%clk
0:00:43.6]} 47... Re5 {[%clk 0:00:27.4]} 48. Kf4 {[%clk 0:00:37.9]} 48... Rxc5
{[%clk 0:00:27]} 49. Re2 {[%clk 0:00:38]} 49... Bc3 {[%clk 0:00:20.5]} 50. Re7+
{[%clk 0:00:37.6]} 50... Kb6 {[%clk 0:00:20.6]} 51. Re8 {[%clk 0:00:37.2]} 51...
Bd2+ {[%clk 0:00:20.3]} 52. Kf3 {[%clk 0:00:35.7]} 52... Rc2 {[%clk 0:00:20.6]}
53. Bb3 {[%clk 0:00:34.8]} 53... Rb2 {[%clk 0:00:20.7]} 54. Bc4 {[%clk
0:00:33.8]} 54... Bc3 {[%clk 0:00:20.7]} 55. Ra8 {[%clk 0:00:33.6]} 55... Rb4
{[%clk 0:00:20.1]} 56. Bg8 {[%clk 0:00:31.7]} 56... Bb2 {[%clk 0:00:19.1]} 57.
Ke2 {[%clk 0:00:30.2]} 57... Kc5 {[%clk 0:00:19.2]} 58. Kd3 {[%clk 0:00:30]}
58... b5 {[%clk 0:00:19.4]} 59. Ra6 {[%clk 0:00:28]} 59... Ra4 {[%clk
0:00:18.1]} 60. Rxa4 {[%clk 0:00:27]} 60... bxa4 {[%clk 0:00:19]} 61. Ba2 {[%clk
0:00:27.1]} 61... Kb4 {[%clk 0:00:19.1]} 62. Bg8 {[%clk 0:00:26.8]} 62... Be5
{[%clk 0:00:19.2]} 63. Ba2 {[%clk 0:00:27.2]} 63... Bxg3 {[%clk 0:00:19.1]} 64.
Bf7 {[%clk 0:00:26]} 64... h4 {[%clk 0:00:19.4]} 65. Be6 {[%clk 0:00:26.3]}
65... h3 {[%clk 0:00:18.2]} 66. Bxh3 {[%clk 0:00:23.2]} 66... a2 {[%clk
0:00:18.2]} 0-1

[Event "*** SCC Grand Prix: Titled Tuesday Blitz"]
[Site "Chess.com"]
[Date "2020.08.25"]
[Round "7"]
[White "tan275"]
[Black "Sn00pPawn"]
[Result "1-0"]
[WhiteElo "2197"]
[BlackElo "2010"]
[TimeControl "180+1"]
[EndTime "11:20:34 PDT"]
[Termination "tan275 won on time"]

1. d4 {[%clk 0:03:00.9]} 1... d5 {[%clk 0:02:58.1]} 2. c4 {[%clk 0:03:01.4]}
2... e6 {[%clk 0:02:57.5]} 3. g3 {[%clk 0:03:00]} 3... Nf6 {[%clk 0:02:56.6]} 4.
Nf3 {[%clk 0:03:00.4]} 4... dxc4 {[%clk 0:02:54.9]} 5. Bg2 {[%clk 0:03:00.2]}
5... Nc6 {[%clk 0:02:53.9]} 6. O-O {[%clk 0:02:59.7]} 6... Rb8 {[%clk
0:02:46.4]} 7. e3 {[%clk 0:02:55.1]} 7... Bd6 {[%clk 0:02:28.4]} 8. Qe2 {[%clk
0:02:54]} 8... b5 {[%clk 0:02:25.1]} 9. a4 {[%clk 0:02:53.1]} 9... a6 {[%clk
0:02:22.8]} 10. axb5 {[%clk 0:02:35.4]} 10... axb5 {[%clk 0:02:22.5]} 11. b3
{[%clk 0:02:34]} 11... Bd7 {[%clk 0:01:37]} 12. bxc4 {[%clk 0:02:30.2]} 12...
bxc4 {[%clk 0:01:36.6]} 13. Na3 {[%clk 0:02:29.7]} 13... c3 {[%clk 0:01:31.5]}
14. Nc4 {[%clk 0:02:21.8]} 14... Bb4 {[%clk 0:01:28.9]} 15. Ba3 {[%clk
0:02:18.1]} 15... O-O {[%clk 0:01:26.4]} 16. Rfc1 {[%clk 0:02:16.6]} 16... Nd5
{[%clk 0:01:17.7]} 17. Bxb4 {[%clk 0:02:03.4]} 17... Ncxb4 {[%clk 0:01:11.8]}
18. e4 {[%clk 0:01:55.6]} 18... Bb5 {[%clk 0:01:11]} 19. exd5 {[%clk 0:01:30]}
19... exd5 {[%clk 0:01:10.3]} 20. Nfe5 {[%clk 0:01:26]} 20... f6 {[%clk
0:01:00.1]} 21. Qg4 {[%clk 0:01:18.2]} 21... dxc4 {[%clk 0:00:43.7]} 22. Qe6+
{[%clk 0:01:13.3]} 22... Kh8 {[%clk 0:00:42.9]} 23. Nf7+ {[%clk 0:01:09.7]}
23... Rxf7 {[%clk 0:00:42.6]} 24. Qxf7 {[%clk 0:01:10.6]} 24... Qxd4 {[%clk
0:00:40.2]} 25. Qxc7 {[%clk 0:01:06.6]} 25... Rd8 {[%clk 0:00:33.5]} 26. Ra7
{[%clk 0:01:03.4]} 26... Qd7 {[%clk 0:00:19.2]} 27. Qxd7 {[%clk 0:00:55.8]}
27... Bxd7 {[%clk 0:00:17]} 28. Rxc3 {[%clk 0:00:53.5]} 28... Be6 {[%clk
0:00:11.4]} 29. Bf1 {[%clk 0:00:48.8]} 29... Nd3 {[%clk 0:00:09.7]} 30. Re7
{[%clk 0:00:42.9]} 30... Bg8 {[%clk 0:00:09.5]} 31. Re3 {[%clk 0:00:32.7]} 31...
h6 {[%clk 0:00:09.5]} 32. Bxd3 {[%clk 0:00:32.1]} 32... cxd3 {[%clk 0:00:09.2]}
33. Rexd3 {[%clk 0:00:32]} 33... Rb8 {[%clk 0:00:08.1]} 34. Rc7 {[%clk 0:00:22]}
34... Rb1+ {[%clk 0:00:07.2]} 35. Kg2 {[%clk 0:00:21.5]} 35... Be6 {[%clk
0:00:03.8]} 36. Rd2 {[%clk 0:00:17.8]} 36... Rb5 {[%clk 0:00:02.8]} 37. h4
{[%clk 0:00:12.5]} 37... Kh7 {[%clk 0:00:02.4]} 38. Kh2 {[%clk 0:00:10.1]} 38...
h5 {[%clk 0:00:02.3]} 39. Re2 {[%clk 0:00:09.9]} 39... Bg4 {[%clk 0:00:02.3]}
40. Ree7 {[%clk 0:00:09]} 40... Kg6 {[%clk 0:00:02.5]} 41. Rxg7+ {[%clk
0:00:08.8]} 41... Kf5 {[%clk 0:00:03.1]} 42. Kg2 {[%clk 0:00:08.3]} 42... Rb2
{[%clk 0:00:03.1]} 43. Rc5+ {[%clk 0:00:07.7]} 43... Ke6 {[%clk 0:00:02.3]} 44.
Rgc7 {[%clk 0:00:06.4]} 44... Kd6 {[%clk 0:00:01.5]} 45. Rc2 {[%clk 0:00:05.9]}
1-0

[Event "*** SCC Grand Prix: Titled Tuesday Blitz"]
[Site "Chess.com"]
[Date "2020.08.25"]
[Round "7"]
[White "Taron_Shagbazyan"]
[Black "dopolian"]
[Result "1/2-1/2"]
[WhiteElo "2647"]
[BlackElo "2484"]
[TimeControl "180+1"]
[EndTime "11:20:36 PDT"]
[Termination "Game drawn by repetition"]

1. d4 {[%clk 0:03:00.9]} 1... Nf6 {[%clk 0:02:58.7]} 2. c4 {[%clk 0:03:01.4]}
2... e6 {[%clk 0:02:58.3]} 3. Nc3 {[%clk 0:03:01.9]} 3... d5 {[%clk 0:02:58.8]}
4. Bg5 {[%clk 0:03:01.1]} 4... Be7 {[%clk 0:02:59.1]} 5. cxd5 {[%clk 0:03:01.4]}
5... exd5 {[%clk 0:02:58.6]} 6. e3 {[%clk 0:03:01.4]} 6... O-O {[%clk
0:02:58.7]} 7. Bd3 {[%clk 0:03:01.9]} 7... c6 {[%clk 0:02:58]} 8. Qc2 {[%clk
0:03:02.4]} 8... Nbd7 {[%clk 0:02:58.1]} 9. Nge2 {[%clk 0:03:02.3]} 9... Re8
{[%clk 0:02:58.4]} 10. O-O {[%clk 0:03:02.2]} 10... Nf8 {[%clk 0:02:58.9]} 11.
Rae1 {[%clk 0:03:01.7]} 11... h6 {[%clk 0:02:47]} 12. Bh4 {[%clk 0:03:00.6]}
12... Ne6 {[%clk 0:02:45.3]} 13. f3 {[%clk 0:02:59.6]} 13... c5 {[%clk
0:02:44.8]} 14. dxc5 {[%clk 0:02:56.1]} 14... Bxc5 {[%clk 0:02:43.3]} 15. Kh1
{[%clk 0:02:45]} 15... Bxe3 {[%clk 0:02:32.5]} 16. Bxf6 {[%clk 0:02:43.5]} 16...
Qxf6 {[%clk 0:02:32.8]} 17. Nxd5 {[%clk 0:02:36.8]} 17... Qg5 {[%clk 0:02:29.2]}
18. Nxe3 {[%clk 0:02:24.9]} 18... Qxe3 {[%clk 0:02:30.1]} 19. Ng3 {[%clk
0:02:20.3]} 19... Qg5 {[%clk 0:02:24.6]} 20. Nf5 {[%clk 0:02:13.2]} 20... Rd8
{[%clk 0:02:17.5]} 21. Be4 {[%clk 0:01:53]} 21... Nf4 {[%clk 0:02:07.2]} 22. Ng3
{[%clk 0:01:40]} 22... Be6 {[%clk 0:01:55.2]} 23. Bxb7 {[%clk 0:01:29.6]} 23...
Rab8 {[%clk 0:01:54.5]} 24. Be4 {[%clk 0:01:28.8]} 24... Bxa2 {[%clk 0:01:45.9]}
25. Ra1 {[%clk 0:01:28.1]} 25... Bb3 {[%clk 0:01:45.2]} 26. Qf2 {[%clk
0:01:26.5]} 26... a5 {[%clk 0:01:41.4]} 27. Rfc1 {[%clk 0:01:20.1]} 27... a4
{[%clk 0:01:31.2]} 28. Rc5 {[%clk 0:01:18.3]} 28... Qf6 {[%clk 0:01:21.3]} 29.
h3 {[%clk 0:01:07]} 29... Qb6 {[%clk 0:01:19.1]} 30. Kg1 {[%clk 0:00:36.2]}
30... Ne6 {[%clk 0:01:14.8]} 31. Rc6 {[%clk 0:00:32]} 31... Qxf2+ {[%clk
0:01:14]} 32. Kxf2 {[%clk 0:00:32.9]} 32... Rd2+ {[%clk 0:01:13]} 33. Ke3 {[%clk
0:00:33.3]} 33... Rxb2 {[%clk 0:01:08.4]} 34. f4 {[%clk 0:00:33.4]} 34... Re8
{[%clk 0:00:59.2]} 35. Nf5 {[%clk 0:00:30.9]} 35... Nd8 {[%clk 0:00:30.9]} 36.
Rc8 {[%clk 0:00:21.4]} 36... g6 {[%clk 0:00:21.6]} 37. Nd6 {[%clk 0:00:20.4]}
37... Rf8 {[%clk 0:00:20.1]} 38. f5 {[%clk 0:00:17.3]} 38... g5 {[%clk 0:00:17]}
39. h4 {[%clk 0:00:16.2]} 39... f6 {[%clk 0:00:12.8]} 40. hxg5 {[%clk
0:00:16.1]} 40... hxg5 {[%clk 0:00:13.5]} 41. Ra8 {[%clk 0:00:14.6]} 41... Nf7
{[%clk 0:00:12.7]} 42. Nxf7 {[%clk 0:00:12.7]} 42... Rxa8 {[%clk 0:00:11.2]} 43.
Nh6+ {[%clk 0:00:12.1]} 43... Kg7 {[%clk 0:00:11.3]} 44. Bxa8 {[%clk 0:00:13]}
44... Kxh6 {[%clk 0:00:11.8]} 45. Bc6 {[%clk 0:00:13.6]} 45... Kh5 {[%clk
0:00:04.9]} 46. Kf3 {[%clk 0:00:13.4]} 46... Kh6 {[%clk 0:00:04.2]} 47. Bxa4
{[%clk 0:00:13.4]} 47... Bxa4 {[%clk 0:00:05.1]} 48. Rxa4 {[%clk 0:00:14.3]}
48... Rb3+ {[%clk 0:00:05.7]} 49. Kg4 {[%clk 0:00:14]} 49... Rb6 {[%clk
0:00:05.7]} 50. Ra8 {[%clk 0:00:12.4]} 50... Rb4+ {[%clk 0:00:05]} 51. Kg3
{[%clk 0:00:12.8]} 51... Rf4 {[%clk 0:00:05]} 52. Ra5 {[%clk 0:00:12.8]} 52...
Kg7 {[%clk 0:00:04.8]} 53. Kh3 {[%clk 0:00:12.9]} 53... Kf7 {[%clk 0:00:05.2]}
54. g4 {[%clk 0:00:13.4]} 54... Rf3+ {[%clk 0:00:04.9]} 55. Kg2 {[%clk
0:00:13.6]} 55... Rb3 {[%clk 0:00:05.8]} 56. Ra7+ {[%clk 0:00:13.3]} 56... Kf8
{[%clk 0:00:06.2]} 57. Ra6 {[%clk 0:00:14.2]} 57... Kf7 {[%clk 0:00:06.6]} 58.
Ra7+ {[%clk 0:00:14.7]} 58... Kf8 {[%clk 0:00:07.2]} 59. Ra6 {[%clk 0:00:15.3]}
59... Kf7 {[%clk 0:00:07.7]} 60. Ra7+ {[%clk 0:00:15.8]} 1/2-1/2